bitfinex/quotes_SOLUSD_20220118
["timestamp","ask_amount","ask_price","bid_price","bid_amount"]
[1642495589351,0.25,138.25,138.16,38.66644406]
[1642495589352,36.1071006,138.23,138.16,38.66644406]
[1642495589752,36.1071006,138.23,138.16,44.66644406]
[1642495590153,2.894,138.24,138.17,0.25]
[1642495590352,2.894,138.27,138.17,0.25]
[1642495590553,13.274,138.27,138.17,0.25]
[1642495590954,10.38,138.27,138.17,0.25]
[1642495591156,58.59188422,138.27,138.17,0.25]
[1642495591757,58.59188422,138.27,138.17,11.1008]
[1642495592157,58.59188422,138.27,138.17,17.3608]
[1642495592358,10.38,138.27,138.18,71.48]
[1642495592556,2.892,138.31,138.18,71.48]
[1642495592760,13.272,138.33,138.19,1.80128817]
[1642495592957,10.38,138.33,138.21,10.8467]
[1642495593358,34.85161772,138.32,138.22,113.47450333]
[1642495593759,34.85161772,138.32,138.22,119.73450333]
[1642495594358,34.85161772,138.32,138.25,10.845]
[1642495594560,34.85161772,138.32,138.26,35.69042817]
[1642495594758,34.85161772,138.32,138.26,42.20042817]
[1642495594960,34.85161772,138.32,138.26,6.51]
[1642495595163,34.85161772,138.32,138.26,6.25]
[1642495595360,34.85161772,138.32,138.2,10.38]
[1642495595560,2.892,138.31,138.23,0.25]
[1642495595761,13.272,138.31,138.23,0.25]
[1642495597466,13.272,138.31,138.23,11.0967]
[1642495597663,13.272,138.31,138.23,17.0967]
[1642495597866,13.272,138.31,138.23,17.3567]
[1642495598466,13.272,138.31,138.23,6.51]
[1642495598665,13.272,138.31,138.23,6.25]
[1642495599465,13.272,138.31,138.23,0.25]
[1642495599665,13.272,138.31,138.23,6.25]
[1642495599868,13.272,138.31,138.24,0.25]
[1642495601071,13.272,138.31,138.24,58.56121251]
[1642495601270,13.272,138.31,138.25,0.25]
[1642495602369,0.25,138.3,138.22,6.0]
[1642495602571,2.892,138.29,138.22,6.0]
[1642495602770,0.25,138.28,138.22,6.0]
[1642495602969,2.892,138.27,138.22,6.0]
[1642495603173,2.892,138.27,138.17,44.90888632]
[1642495603373,0.25,138.26,138.17,50.90888632]
[1642495603572,48.20706332,138.24,138.17,50.90888632]
[1642495605277,48.20706332,138.24,138.17,6.0]
[1642495605475,48.20706332,138.24,138.16,16.8515]
[1642495605674,2.894,138.23,138.16,16.8515]
[1642495605976,2.894,138.23,138.17,0.25]
[1642495606175,51.10106332,138.24,138.17,0.25]
[1642495606976,51.10106332,138.24,138.16,16.3615]
[1642495607177,48.20706332,138.24,138.16,16.3615]
[1642495607575,48.20706332,138.24,138.16,17.91292511]
[1642495607778,47.8238213,138.24,138.16,17.91292511]
[1642495608377,47.8238213,138.24,138.17,0.25]
[1642495608578,47.8238213,138.24,138.2,36.59524469]
[1642495608799,47.8238213,138.24,138.21,0.25]
[1642495608999,47.8238213,138.24,138.22,0.5]
[1642495609301,10.38,138.28,138.22,0.5]
[1642495609501,2.892,138.27,138.22,0.5]
[1642495609799,10.38,138.28,138.22,0.5]
[1642495610402,51.95556501,138.28,138.23,36.86529222]
[1642495610803,51.95556501,138.28,138.24,0.25]
[1642495611200,51.95556501,138.28,138.23,53.71199222]
[1642495611600,51.95556501,138.28,138.23,6.0]
[1642495611803,51.95556501,138.28,138.19,36.1555]
[1642495611804,51.95556501,138.28,138.19,42.1555]
[1642495612001,2.892,138.27,138.2,0.25]
[1642495612203,51.95556501,138.28,138.2,0.25]
[1642495612903,54.84756501,138.28,138.2,0.25]
[1642495613106,0.25,138.27,138.2,0.25]
[1642495613404,2.892,138.26,138.19,6.0]
[1642495613805,2.892,138.26,138.2,0.25]
[1642495614103,40.78090986,138.25,138.18,0.25]
[1642495614306,2.894,138.24,138.18,0.25]
[1642495615309,2.894,138.24,138.17,0.25]
[1642495615604,40.78090986,138.25,138.17,0.25]
[1642495615904,40.78090986,138.25,138.17,11.1013]
[1642495616303,40.78090986,138.25,138.17,17.1013]
[1642495616706,40.78090986,138.25,138.17,17.3613]
[1642495617408,40.78090986,138.25,138.17,18.91272511]
[1642495618309,40.78090986,138.25,138.17,90.39272511]
[1642495618609,33.6202,138.27,138.17,90.39272511]
[1642495620411,10.38,138.27,138.17,90.39272511]
[1642495621314,27.2541,138.31,138.18,10.38]
[1642495621513,27.2541,138.31,138.21,10.8451]
[1642495621514,24.3621,138.31,138.21,10.8451]
[1642495622016,24.3621,138.31,138.25,0.13142574]
[1642495622213,41.81935733,138.3,138.25,0.13142574]
[1642495622412,2.892,138.29,138.25,0.13142574]
[1642495622614,44.71135733,138.3,138.25,0.13142574]
[1642495622814,41.81935733,138.3,138.25,0.13142574]
[1642495623213,27.2541,138.31,138.25,10.97652574]
[1642495623414,24.3621,138.31,138.26,0.25]
[1642495623815,24.3621,138.31,138.25,16.97652574]
[1642495624216,24.3621,138.31,138.26,39.17471]
[1642495624519,10.38,138.36,138.26,56.26861]
[1642495624716,38.1599,138.37,138.26,56.52861]
[1642495624915,35.2679,138.37,138.26,58.08003511]
[1642495625116,2.891,138.36,138.26,56.52861]
[1642495625317,44.04033576,138.35,138.26,56.52861]
[1642495627721,2.892,138.34,138.26,56.52861]
[1642495629122,44.04033576,138.35,138.26,56.52861]
[1642495630525,2.892,138.34,138.26,56.52861]
[1642495631225,2.892,138.34,138.26,56.26861]
[1642495631426,2.892,138.34,138.26,17.0939]
[1642495631825,2.892,138.34,138.33,0.13142574]
[1642495632028,8.45639994,138.34,138.33,0.13142574]
[1642495633027,5.56439994,138.34,138.33,0.13142574]
[1642495633426,35.2633,138.39,138.33,0.63142574]
[1642495633825,39.93324438,138.38,138.33,39.00864613]
[1642495634225,39.93324438,138.38,138.34,0.25]
[1642495635228,24.8833,138.39,138.34,0.25]
[1642495636132,65.76759499,138.39,138.34,0.25]
[1642495637136,65.76759499,138.39,138.34,11.088]
[1642495637331,13.271,138.41,138.34,17.348]
[1642495637532,1.64666091,138.42,138.34,17.348]
[1642495639036,41.52310078,138.41,138.34,17.098]
[1642495639837,41.52310078,138.41,138.36,10.8346]
[1642495640034,41.52310078,138.41,138.37,41.81892577]
[1642495640436,24.5811,138.45,138.38,0.25]
[1642495641438,34.95681257,138.44,138.38,11.0846]
[1642495641637,34.95681257,138.44,138.4,0.13142574]
[1642495643465,2.89,138.46,138.4,10.96502574]
[1642495643665,2.888,138.49,138.4,10.96502574]
[1642495643864,26.87267885,138.5,138.41,71.73]
[1642495644063,23.98467885,138.5,138.41,71.73]
[1642495644264,23.98467885,138.5,138.41,6.51]
[1642495644464,35.81905352,138.49,138.41,6.0]
[1642495644665,2.888,138.48,138.4,0.13142574]
[1642495644867,3.138,138.48,138.4,0.13142574]
[1642495645764,46.45604972,138.46,138.4,0.13142574]
[1642495645965,2.888,138.45,138.4,0.13142574]
[1642495647369,26.4839,138.45,138.4,0.13142574]
[1642495648567,0.25,138.44,138.4,0.13142574]
[1642495648768,2.888,138.43,138.4,0.13142574]
[1642495648968,5.56439994,138.42,138.4,0.13142574]
[1642495649168,2.888,138.41,138.4,0.13142574]
[1642495649368,5.56439994,138.42,138.4,0.13142574]
[1642495649571,48.76333628,138.41,138.4,0.13142574]
[1642495649769,51.65333628,138.41,138.4,0.13142574]
[1642495650487,48.76333628,138.41,138.4,0.13142574]
[1642495652894,48.76333628,138.41,138.4,0.00142574]
[1642495653093,2.03905272,138.41,138.4,0.00142574]
[1642495653294,40.0,138.4,138.31,10.11025489]
[1642495653493,2.891,138.39,138.31,10.11025489]
[1642495653734,3.141,138.39,138.31,6.0]
[1642495654121,36.68834423,138.38,138.3,59.63107008]
[1642495654324,2.891,138.37,138.31,0.25]
[1642495655926,2.891,138.37,138.3,6.0]
[1642495656125,0.25,138.36,138.26,10.11025489]
[1642495656324,0.25,138.36,138.27,0.25]
[1642495656325,2.892,138.35,138.27,0.25]
[1642495656525,10.38,138.34,138.27,0.25]
[1642495656726,2.892,138.33,138.27,0.25]
[1642495656929,45.10244505,138.32,138.25,45.29228227]
[1642495658030,45.10244505,138.32,138.25,41.44202738]
[1642495658227,45.10244505,138.32,138.25,41.18202738]
[1642495658436,45.10244505,138.32,138.26,0.25]
[1642495658628,13.272,138.34,138.26,11.0943]
[1642495658829,10.38,138.34,138.26,17.0943]
[1642495659630,37.45075468,138.33,138.26,17.0943]
[1642495659832,37.45075468,138.33,138.26,17.3543]
[1642495662235,24.7726,138.36,138.26,17.3543]
[1642495662236,12.16905272,138.39,138.26,17.3543]
[1642495662435,2.892,138.41,138.28,71.48]
[1642495662636,2.891,138.44,138.31,10.8365]
[1642495662837,2.891,138.44,138.32,0.25]
[1642495663137,40.05500113,138.43,138.33,38.24428918]
[1642495663337,40.05500113,138.43,138.34,0.25]
[1642495663736,40.05500113,138.43,138.35,10.8346]
[1642495663936,40.05500113,138.43,138.36,49.10902052]
[1642495664135,40.05500113,138.43,138.36,0.25]
[1642495664336,40.05500113,138.43,138.36,6.25]
[1642495664536,2.89,138.42,138.36,6.25]
[1642495664964,2.89,138.42,138.36,0.25]
[1642495665137,2.89,138.42,138.36,6.25]
[1642495665337,2.89,138.42,138.36,6.0]
[1642495665740,2.89,138.42,138.37,0.25]
[1642495665938,2.89,138.42,138.34,42.15640722]
[1642495666138,2.89,138.42,138.35,11.0868]
[1642495666437,2.89,138.42,138.35,17.0868]
[1642495666637,2.89,138.42,138.35,17.3468]
[1642495667237,40.05500113,138.43,138.35,17.0868]
[1642495667640,0.25,138.42,138.35,6.25]
[1642495667838,36.65375968,138.4,138.35,0.25]
[1642495668039,36.65375968,138.4,138.35,6.25]
[1642495668642,2.89,138.41,138.35,0.25]
[1642495668842,2.89,138.42,138.35,6.25]
[1642495669245,2.89,138.42,138.35,0.25]
[1642495669643,36.13201583,138.41,138.35,0.25]
[1642495669844,36.13201583,138.41,138.34,0.26]
[1642495670044,2.89,138.4,138.35,0.25]
[1642495670243,3.14,138.4,138.31,0.25]
[1642495670444,3.14,138.4,138.31,4.36025489]
[1642495670745,13.9812,138.4,138.31,51.53688496]
[1642495670945,2.89,138.4,138.31,57.53688496]
[1642495671144,2.89,138.4,138.31,57.79688496]
[1642495671346,60.52271583,138.41,138.31,57.79688496]
[1642495671745,60.52271583,138.41,138.31,64.52673007]
[1642495671946,60.52271583,138.41,138.31,136.00673007]
[1642495672150,60.52271583,138.41,138.31,147.92684021]
[1642495672594,24.3907,138.41,138.31,147.92684021]
[1642495672794,2.891,138.43,138.31,147.92684021]
[1642495672994,51.2126,138.45,138.31,147.92684021]
[1642495673189,48.3226,138.45,138.31,147.92684021]
[1642495673795,94.85675999,138.45,138.31,147.92684021]
[1642495673996,94.85675999,138.45,138.34,4.11025489]
[1642495674196,94.85675999,138.45,138.38,10.8336]
[1642495674391,94.85675999,138.45,138.39,42.2595053]
[1642495674796,94.85675999,138.45,138.39,48.5195053]
[1642495674993,2.89,138.48,138.4,71.48]
[1642495675393,2.89,138.48,138.41,0.25]
[1642495676594,40.11533462,138.49,138.42,47.43464998]
[1642495676796,37.22733462,138.49,138.43,0.25]
[1642495677998,2.888,138.51,138.43,11.0811]
[1642495678397,2.888,138.51,138.43,17.3411]
[1642495678799,0.25,138.5,138.43,17.3411]
[1642495678998,41.86228277,138.5,138.43,17.3411]
[1642495680199,41.86228277,138.5,138.43,0.25]
[1642495680401,3.138,138.49,138.41,0.25]
[1642495680701,3.138,138.49,138.4,6.0]
[1642495680900,3.138,138.49,138.38,10.11025489]
[1642495681107,26.1525,138.49,138.39,42.55785155]
[1642495681300,26.1525,138.49,138.39,48.55785155]
[1642495681500,36.9866,138.49,138.39,59.39205155]
[1642495681905,25.9025,138.49,138.39,53.39205155]
[1642495682109,25.9025,138.49,138.4,0.25]
[1642495682302,23.0145,138.49,138.4,0.25]
[1642495682502,23.0145,138.49,138.48,0.06594922]
[1642495682703,28.57889994,138.49,138.48,0.06594922]
[1642495683305,3.43514887,138.5,138.48,0.06594922]
[1642495683928,5.56439994,138.49,138.48,0.06594922]
[1642495684128,27.97854887,138.52,138.48,0.06594922]
[1642495684129,49.86469431,138.52,138.48,0.06594922]
[1642495684530,49.86469431,138.52,138.48,10.89294922]
[1642495684929,49.86469431,138.52,138.49,0.25]
[1642495685332,5.56439994,138.51,138.49,0.25]
[1642495685934,46.42954544,138.52,138.49,0.25]
[1642495686734,5.56439994,138.51,138.49,0.25]
[1642495686933,5.56439994,138.51,138.48,6.32594922]
[1642495686934,2.53219997,138.51,138.48,0.06594922]
[1642495687534,3.138,138.5,138.48,0.06594922]
[1642495687734,44.49444097,138.49,138.48,0.06594922]
[1642495687934,50.05884091,138.49,138.48,0.06594922]
[1642495689637,50.30884091,138.49,138.48,0.06594922]
[1642495689838,50.05884091,138.49,138.48,0.06594922]
[1642495691441,5.56439994,138.49,138.48,0.06594922]
[1642495692839,2.53219997,138.49,138.48,0.31594922]
[1642495693439,2.53219997,138.49,138.48,0.06594922]
[1642495694340,42.48873189,138.49,138.48,0.06594922]
[1642495695639,2.53219997,138.49,138.48,0.06594922]
[1642495697044,5.56439994,138.49,138.48,0.06594922]
[1642495697845,3.43514887,138.54,138.48,11.39274922]
[1642495698142,2.888,138.55,138.48,11.39274922]
[1642495698143,3.43514887,138.55,138.48,11.39274922]
[1642495698343,3.43514887,138.55,138.49,0.25]
[1642495698744,47.64472135,138.54,138.49,45.42661531]
[1642495698943,47.64472135,138.54,138.49,56.25261531]
[1642495699147,47.64472135,138.54,138.49,62.51261531]
[1642495699345,3.43514887,138.56,138.49,62.51261531]
[1642495699543,3.43514887,138.56,138.49,17.336]
[1642495700344,27.95874887,138.57,138.49,17.336]
[1642495700644,44.56241927,138.56,138.5,58.00690326]
[1642495700845,44.56241927,138.56,138.51,0.25]
[1642495701946,3.43514887,138.57,138.51,11.0745]
[1642495702146,3.43514887,138.57,138.51,82.5545]
[1642495702480,3.43514887,138.57,138.51,94.6075]
[1642495702646,3.43514887,138.57,138.51,23.1275]
[1642495702945,43.19296242,138.56,138.51,23.1275]
[1642495703146,3.43514887,138.57,138.51,94.6075]
[1642495703545,10.8261,138.58,138.51,94.6075]
[1642495704146,48.81894149,138.57,138.51,94.6075]
[1642495704450,48.81894149,138.57,138.51,12.043]
[1642495704648,2.887,138.56,138.51,6.25]
[1642495704847,2.887,138.56,138.51,0.25]
[1642495705345,2.887,138.56,138.5,0.25]
[1642495705547,78.96399036,138.57,138.5,0.25]
[1642495705951,78.96399036,138.57,138.5,11.0752]
[1642495706149,78.96399036,138.57,138.51,46.70443074]
[1642495706349,76.07699036,138.57,138.52,0.25]
[1642495708149,72.64184149,138.57,138.52,0.25]
[1642495708849,72.64184149,138.57,138.52,54.72785113]
[1642495709050,2.05577416,138.54,138.52,54.72785113]
[1642495709251,2.05577416,138.54,138.53,0.5]
[1642495710351,2.05577416,138.55,138.53,0.5]
[1642495710954,38.78875492,138.54,138.53,0.5]
[1642495711154,38.78875492,138.54,138.48,0.06594922]
[1642495711356,3.137,138.53,138.48,0.06594922]
[1642495711653,2.887,138.53,138.48,0.06594922]
[1642495711854,2.05577416,138.52,138.48,0.06594922]
[1642495712056,40.67191442,138.51,138.48,0.06594922]
[1642495712253,3.03219997,138.5,138.48,0.06594922]
[1642495713054,5.08797413,138.5,138.48,0.06594922]
[1642495713255,3.03219997,138.49,138.48,0.06594922]
[1642495714662,3.43514887,138.52,138.48,0.06594922]
[1642495714854,3.43514887,138.52,138.48,59.26692382]
[1642495715055,2.63514887,138.52,138.49,71.48]
[1642495715255,2.63514887,138.52,138.49,6.25]
[1642495715455,38.29260064,138.52,138.49,0.25]
[1642495715856,35.65745177,138.52,138.49,11.077]
[1642495716058,35.65745177,138.52,138.49,0.25]
[1642495716256,35.65745177,138.52,138.48,0.06594922]
[1642495716659,2.887,138.57,138.48,0.06594922]
[1642495716859,0.25,138.56,138.48,0.06594922]
[1642495717484,0.25,138.56,138.48,10.89374922]
[1642495717682,45.49216762,138.56,138.49,40.65312011]
[1642495717885,45.24216762,138.56,138.49,46.90312011]
[1642495718083,45.24216762,138.56,138.49,47.16312011]
[1642495718783,2.887,138.57,138.49,57.99022011]
[1642495718983,37.7258,138.58,138.49,57.99022011]
[1642495719184,34.8388,138.58,138.49,57.99022011]
[1642495719787,44.53206333,138.57,138.49,57.99022011]
[1642495720186,44.53206333,138.57,138.49,17.3371]
[1642495720388,44.53206333,138.57,138.49,16.8271]
[1642495720587,0.25,138.56,138.49,6.0]
[1642495720788,2.887,138.55,138.48,0.06594922]
[1642495721187,37.0353645,138.54,138.48,0.06594922]
[1642495721788,37.0353645,138.54,138.48,11.14384922]
[1642495721988,37.0353645,138.54,138.49,49.54087442]
[1642495722390,37.0353645,138.54,138.5,0.25]
[1642495722588,36.96941528,138.54,138.5,0.25]
[1642495724494,36.96941528,138.54,138.49,0.25]
[1642495725892,36.96941528,138.54,138.46,16.829]
[1642495726093,3.138,138.53,138.46,65.36069815]
[1642495726294,2.888,138.53,138.46,65.36069815]
[1642495727095,2.888,138.53,138.47,71.48]
[1642495727295,23.7772,138.55,138.49,10.8258]
[1642495727695,23.7772,138.55,138.5,0.25]
[1642495728095,67.82978913,138.55,138.49,6.0]
[1642495728295,67.82978913,138.55,138.48,10.8273]
[1642495728496,67.82978913,138.55,138.48,11.0773]
[1642495728497,2.887,138.54,138.48,11.0773]
[1642495728696,2.887,138.54,138.48,17.0773]
[1642495728896,2.887,138.54,138.48,17.3373]
[1642495729098,2.887,138.54,138.49,37.04691991]
[1642495729295,2.887,138.54,138.49,43.04691991]
[1642495729898,2.887,138.54,138.5,0.25]
[1642495730100,23.7772,138.55,138.5,0.25]
[1642495731199,69.65270917,138.55,138.5,0.25]
[1642495732202,23.7772,138.55,138.5,11.0762]
[1642495732402,10.38,138.56,138.5,17.3362]
[1642495732604,2.887,138.57,138.5,17.3362]
[1642495733202,44.99530151,138.56,138.5,17.3362]
[1642495734303,0.25,138.55,138.5,10.8262]
[1642495734503,3.137,138.55,138.49,10.827]
[1642495734703,3.137,138.55,138.47,6.0]
[1642495734904,3.137,138.55,138.45,6.0]
[1642495735106,3.137,138.55,138.45,43.72238815]
[1642495736234,3.137,138.55,138.45,43.98238815]
[1642495736407,13.9664,138.55,138.46,10.8294]
[1642495736605,4.11251528,138.54,138.46,10.8294]
[1642495736905,47.0627421,138.53,138.46,17.0894]
[1642495737105,47.0627421,138.53,138.47,0.25]
[1642495737907,47.0627421,138.53,138.46,6.0]
[1642495738109,47.0627421,138.53,138.42,77.48]
[1642495738307,47.0627421,138.53,138.43,0.25]
[1642495738308,70.5517421,138.53,138.43,0.25]
[1642495738508,86.9317421,138.53,138.43,0.25]
[1642495738708,86.9317421,138.53,138.39,10.38]
[1642495738911,95.2497421,138.53,138.39,6.0]
[1642495739508,4.11324387,138.52,138.37,27.2158]
[1642495739708,13.268,138.51,138.37,6.0]
[1642495739909,23.8283,138.5,138.36,359.80864413]
[1642495740111,13.268,138.49,138.36,359.80864413]
[1642495740316,19.518,138.49,138.36,359.80864413]
[1642495740511,36.65733739,138.48,138.37,40.11619785]
[1642495740713,13.268,138.47,138.37,40.11619785]
[1642495740912,47.07633005,138.45,138.38,0.25]
[1642495741110,49.96433005,138.45,138.38,0.25]
[1642495741311,2.888,138.47,138.38,0.25]
[1642495742517,23.7964,138.48,138.38,0.25]
[1642495743012,23.7964,138.48,138.38,11.0855]
[1642495743412,23.7964,138.48,138.4,115.12034821]
[1642495743814,23.7964,138.48,138.41,0.25]
[1642495744213,0.25,138.47,138.4,43.64034821]
[1642495744414,48.15612977,138.45,138.4,43.64034821]
[1642495744912,2.888,138.46,138.4,43.64034821]
[1642495745114,3.138,138.47,138.41,0.25]
[1642495746113,2.888,138.47,138.41,0.25]
[1642495746313,2.888,138.47,138.41,11.0832]
[1642495746613,23.0084,138.52,138.42,71.48]
[1642495746813,23.0084,138.52,138.43,0.25]
[1642495747213,65.61958823,138.52,138.43,35.93855629]
[1642495747414,65.61958823,138.52,138.43,42.19855629]
[1642495747615,65.61958823,138.52,138.43,41.93855629]
[1642495747817,65.61958823,138.52,138.43,42.19855629]
[1642495748017,68.50758823,138.52,138.43,42.19855629]
[1642495748216,0.25,138.51,138.43,42.19855629]
[1642495748415,2.888,138.5,138.45,10.8297]
[1642495748917,2.888,138.5,138.46,43.18995746]
[1642495749116,3.138,138.51,138.46,43.18995746]
[1642495751544,2.888,138.51,138.46,43.18995746]
[1642495753048,61.81393971,138.52,138.46,43.18995746]
[1642495753345,61.81393971,138.52,138.46,43.44995746]
[1642495753747,61.81393971,138.52,138.46,49.44995746]
[1642495754146,0.25,138.51,138.46,49.44995746]
[1642495755247,0.25,138.51,138.46,43.44995746]
[1642495755447,23.0084,138.52,138.46,43.44995746]
[1642495755750,22.5065,138.53,138.47,0.25]
[1642495756547,44.36334878,138.52,138.47,0.25]
[1642495757147,44.36334878,138.52,138.42,52.4788]
[1642495757347,0.25,138.51,138.43,0.25]
[1642495758547,2.888,138.5,138.43,11.0812]
[1642495758748,48.39602522,138.49,138.43,11.0812]
[1642495758947,48.39602522,138.49,138.43,17.3412]
[1642495760852,2.888,138.5,138.43,17.3412]
[1642495761053,2.888,138.52,138.43,17.3412]
[1642495761250,3.138,138.52,138.43,17.3412]
[1642495761754,49.61809772,138.51,138.43,17.3412]
[1642495761951,3.138,138.52,138.44,71.48]
[1642495762152,0.25,138.52,138.46,10.8292]
[1642495762352,0.25,138.52,138.47,0.25]
[1642495762952,0.25,138.52,138.47,49.24818044]
[1642495763155,0.25,138.52,138.47,66.33678044]
[1642495764452,0.25,138.52,138.47,55.50818044]
[1642495766355,0.25,138.52,138.47,6.51]
[1642495766757,0.25,138.52,138.47,0.51]
[1642495766957,0.25,138.52,138.47,6.51]
[1642495767559,0.25,138.52,138.47,0.51]
[1642495767759,0.25,138.52,138.47,17.0787]
[1642495768162,0.25,138.52,138.47,17.3387]
[1642495768665,66.58588857,138.53,138.47,17.3387]
[1642495768864,63.69788857,138.53,138.47,17.3387]
[1642495769464,41.19138857,138.53,138.47,88.8187]
[1642495769664,2.888,138.56,138.47,88.8187]
[1642495769865,26.1886,138.56,138.47,88.8187]
[1642495770565,44.35875965,138.55,138.47,88.8187]
[1642495775169,44.35875965,138.55,138.47,10.8287]
[1642495775369,3.137,138.54,138.45,10.8296]
[1642495775668,25.8982,138.54,138.45,16.8296]
[1642495776071,25.8982,138.54,138.46,39.24231712]
[1642495776381,25.8982,138.54,138.46,50.07171712]
[1642495776570,25.8982,138.54,138.47,0.25]
[1642495777772,25.6482,138.54,138.47,11.0787]
[1642495777975,25.6482,138.54,138.47,11.3387]
[1642495778374,2.887,138.54,138.47,17.3387]
[1642495778575,2.887,138.54,138.47,88.8187]
[1642495778977,44.35875965,138.55,138.47,88.8187]
[1642495780473,44.35875965,138.55,138.47,17.3387]
[1642495780674,44.35875965,138.55,138.47,11.0787]
[1642495780879,3.137,138.54,138.47,10.8287]
[1642495781075,2.887,138.54,138.47,10.8287]
[1642495781773,2.887,138.54,138.47,16.8287]
[1642495782374,2.887,138.54,138.48,0.25]
[1642495783577,47.24575965,138.55,138.48,0.25]
[1642495784278,0.25,138.54,138.48,0.25]
[1642495786009,47.24575965,138.55,138.48,0.25]
[1642495786614,0.25,138.54,138.47,17.0887]
[1642495786811,2.887,138.53,138.47,6.26]
[1642495787012,2.887,138.53,138.44,6.0]
[1642495787224,0.25,138.52,138.41,35.2514]
[1642495787413,2.888,138.51,138.41,41.2514]
[1642495787713,59.71392252,138.5,138.41,88.71975921]
[1642495787911,2.888,138.49,138.42,71.48]
[1642495788112,2.888,138.54,138.42,71.48]
[1642495788311,0.25,138.53,138.43,0.25]
[1642495789116,42.87871981,138.53,138.46,38.2887535]
[1642495789314,42.87871981,138.53,138.47,0.25]
[1642495790418,26.1322,138.54,138.47,11.0785]
[1642495790720,2.888,138.54,138.47,82.5585]
[1642495790916,42.37476444,138.57,138.47,88.8185]
[1642495791117,39.48776444,138.57,138.47,90.35557568]
[1642495791516,47.12032418,138.56,138.47,90.35557568]
[1642495793416,47.12032418,138.56,138.47,90.10557568]
[1642495793617,0.25,138.55,138.47,88.5685]
[1642495793816,3.137,138.55,138.47,17.0885]
[1642495794818,3.137,138.55,138.48,0.25]
[1642495795018,3.137,138.55,138.48,11.0776]
[1642495795220,3.137,138.55,138.49,36.68509773]
[1642495795419,2.887,138.55,138.5,0.25]
[1642495795620,74.22492418,138.56,138.5,0.25]
[1642495798022,74.22492418,138.56,138.5,11.0762]
[1642495798623,74.22492418,138.56,138.5,0.25]
[1642495798823,0.25,138.55,138.5,0.25]
[1642495803026,0.25,138.55,138.49,0.25]
[1642495804927,74.22492418,138.56,138.49,0.25]
[1642495805130,85.05342418,138.56,138.48,6.0]
[1642495805329,95.43342418,138.56,138.44,6.0]
[1642495805528,95.43342418,138.56,138.44,0.26]
[1642495806128,99.54580878,138.56,138.42,29.1214]
[1642495806327,0.25,138.55,138.43,39.67476203]
[1642495806528,48.40941726,138.53,138.44,10.8302]
[1642495806926,48.40941726,138.53,138.45,0.25]
[1642495808430,48.40941726,138.53,138.47,10.8286]
[1642495808629,48.40941726,138.53,138.47,56.84107141]
[1642495808827,48.40941726,138.53,138.48,0.25]
[1642495809728,48.40941726,138.53,138.48,11.0773]
[1642495810127,48.40941726,138.53,138.48,11.3373]
[1642495810932,48.40941726,138.53,138.48,0.51]
[1642495811130,48.40941726,138.53,138.47,10.8286]
[1642495811331,48.40941726,138.53,138.48,0.25]
[1642495812132,0.25,138.52,138.45,10.8296]
[1642495812332,2.888,138.51,138.44,6.0]
[1642495812533,2.888,138.51,138.41,28.9759334]
[1642495812733,73.39847416,138.5,138.41,28.9759334]
[1642495812935,2.888,138.49,138.41,28.9759334]
[1642495813134,2.888,138.49,138.4,39.87722674]
[1642495813534,2.888,138.49,138.4,75.5845334]
[1642495813737,0.25,138.48,138.4,4.1045334]
[1642495813936,2.888,138.47,138.4,4.1045334]
[1642495814337,0.25,138.46,138.38,4.1045334]
[1642495814536,35.76502262,138.46,138.38,4.1045334]
[1642495815539,35.76502262,138.46,138.36,36.03637042]